bitfinex/quotes_SOLUSD_20250307
["timestamp","ask_amount","ask_price","bid_price","bid_amount"]
[1741376146657,18.85575543,147.57,147.53,8.1032]
[1741376147254,18.85575543,147.56,147.53,8.1032]
[1741376147841,18.85575543,147.57,147.53,8.1032]
[1741376148240,18.85575543,147.56,147.53,8.1032]
[1741376148655,18.85575543,147.57,147.53,8.1032]
[1741376150359,23.59945543,147.57,147.53,8.1032]
[1741376151959,11.8555,147.61,147.53,8.1032]
[1741376152150,18.85575543,147.58,147.53,14.8813]
[1741376152463,18.85575543,147.58,147.53,8.1032]
[1741376152653,18.85575543,147.57,147.53,8.1032]
[1741376153047,18.85575543,147.58,147.53,8.1032]
[1741376153663,18.85575543,147.57,147.53,8.1032]
[1741376154166,18.85575543,147.55,147.53,8.1032]
[1741376154349,3.909,147.53,147.41,0.033]
[1741376154548,18.85575543,147.42,147.41,0.033]
[1741376154949,37.71151086,147.42,147.41,0.033]
[1741376155158,37.71151086,147.42,147.31,82.0]
[1741376155460,30.27975525,147.32,147.25,3.7098]
[1741376155642,30.27975525,147.26,147.25,3.7098]
[1741376155843,30.27975525,147.26,147.22,154.76527102]
[1741376156049,38.13975525,147.35,147.23,30.27975525]
[1741376156369,4.7509,147.34,147.27,30.27975525]
[1741376156571,30.27975525,147.28,147.23,0.2741487]
[1741376156743,16.6281,147.34,147.23,0.2741487]
[1741376156744,18.64964886,147.33,147.23,0.2741487]
[1741376156951,165.36964886,147.33,147.23,0.2741487]
[1741376157358,30.27975525,147.24,147.23,0.2741487]
[1741376158268,35.03385525,147.24,147.23,4.87e-05]
[1741376159658,30.27975525,147.24,147.23,4.87e-05]
[1741376160166,48.92940411,147.24,147.23,4.87e-05]
[1741376160543,6.778,147.3,147.23,4.87e-05]
[1741376160544,30.27975525,147.25,147.23,4.87e-05]
[1741376160876,7.86,147.38,147.24,30.27975525]
[1741376161047,7.86,147.38,147.24,7.91257766]
[1741376161242,7.86,147.38,147.24,6.8942]
[1741376161551,7.86,147.37,147.24,6.8942]
[1741376161751,30.27975525,147.33,147.24,318.8942]
[1741376161953,7.86,147.37,147.3,30.27975525]
[1741376162257,7.86,147.37,147.33,30.27975525]
[1741376162453,30.27975525,147.4,147.34,30.27975525]
[1741376162654,30.27975525,147.4,147.33,30.27975525]
[1741376162875,11.29252352,147.41,147.28,30.27975525]
[1741376162876,38.13975525,147.41,147.35,30.27975525]
[1741376163074,30.27975525,147.4,147.33,30.27975525]
[1741376163258,7.86,147.41,147.3,1.01787305]
[1741376163582,33.82069099,147.45,147.31,6.7687]
[1741376163874,45.35307584,147.38,147.32,45.35307584]
[1741376164050,45.35307584,147.42,147.36,45.35307584]
[1741376164247,33.82069099,147.45,147.38,45.35307584]
[1741376164470,33.82069099,147.45,147.35,45.35307584]
[1741376164471,33.87277292,147.5,147.44,45.35307584]
[1741376164779,64.07210109,147.4,147.31,144.4687]
[1741376164999,64.07210109,147.4,147.32,7.86]
[1741376165274,64.07210109,147.4,147.38,45.35307584]
[1741376165473,64.07210109,147.4,147.39,45.35307584]
[1741376165785,64.07210109,147.4,147.37,45.35307584]
[1741376166394,45.35307584,147.38,147.32,45.35307584]
[1741376166875,45.35307584,147.35,147.29,45.35307584]
[1741376167057,45.35307584,147.35,147.27,6.8206]
[1741376167252,45.35307584,147.32,147.27,6.8206]
[1741376167456,45.35307584,147.33,147.27,45.35307584]
[1741376167951,45.35307584,147.3,147.23,4.87e-05]
[1741376168148,1.01765057,147.32,147.24,45.35307584]
[1741376168149,45.35307584,147.31,147.24,45.35307584]
[1741376168369,45.35307584,147.3,147.23,4.87e-05]
[1741376168560,45.35307584,147.28,147.23,4.87e-05]
[1741376168774,1.01765057,147.32,147.25,45.35307584]
[1741376168978,45.35307584,147.31,147.25,45.35307584]
[1741376169278,45.35307584,147.29,147.24,0.033]
[1741376169579,1.01765057,147.35,147.28,45.35307584]
[1741376169878,45.35307584,147.35,147.29,45.35307584]
[1741376170071,45.35307584,147.35,147.28,45.35307584]
[1741376170270,45.35307584,147.35,147.29,45.35307584]
[1741376170454,45.35307584,147.33,147.26,45.35307584]
[1741376170653,45.35307584,147.33,147.24,6.8245]
[1741376170881,45.35307584,147.34,147.28,45.35307584]
[1741376171084,45.35307584,147.33,147.27,45.35307584]
[1741376171283,45.35307584,147.31,147.25,45.35307584]
[1741376171492,45.35307584,147.3,147.24,45.38607584]
[1741376171784,146.9,147.36,147.24,6.8243]
[1741376172080,1.01765057,147.35,147.24,6.8243]
[1741376172256,18.64964886,147.34,147.24,0.033]
[1741376172584,1.01765057,147.33,147.24,0.033]
[1741376172879,146.9,147.36,147.24,312.033]
[1741376172880,1.01765057,147.35,147.24,312.033]
[1741376173057,45.35307584,147.34,147.28,45.35307584]
[1741376173260,45.35307584,147.33,147.24,0.033]
[1741376173567,1.01765057,147.35,147.27,45.35307584]
[1741376173767,45.35307584,147.33,147.27,45.35307584]
[1741376173976,45.35307584,147.32,147.24,0.033]
[1741376174277,45.35307584,147.28,147.24,0.033]
[1741376174955,45.35307584,147.26,147.24,0.033]
[1741376175182,45.35307584,147.25,147.24,0.033]
[1741376175488,45.35307584,147.25,147.2,1.7147639]
[1741376175489,245.50615168,147.25,147.2,1.7147639]
[1741376175675,64.0027247,147.21,147.2,1.7147639]
[1741376175875,71.8627247,147.21,147.2,1.7147639]
[1741376176055,117.21580054,147.21,147.2,1.7147639]
[1741376176253,53.21307584,147.21,147.2,1.7147639]
[1741376176458,98.56615168,147.21,147.2,1.7147639]
[1741376176659,72.88037527,147.21,147.2,1.7147639]
[1741376176870,118.23345111,147.21,147.2,1.7147639]
[1741376177970,18.64964886,147.2,147.02,17.0039]
[1741376178173,45.35307584,147.08,147.02,45.35307584]
[1741376178384,45.35307584,147.07,147.01,45.35307584]
[1741376178557,18.64964886,147.09,147.01,45.35307584]
[1741376178756,45.35307584,147.06,146.99,7.4287]
[1741376178957,1.01765057,147.08,147.04,45.35307584]
[1741376179156,1.01765057,147.13,147.0,45.35307584]
[1741376179380,45.35307584,147.13,147.0,358.37317544]
[1741376179583,45.35307584,147.12,147.01,1.01991547]
[1741376179790,45.35307584,147.09,147.0,312.0]
[1741376179971,46.37072641,147.08,146.99,31.2396]
[1741376180172,1.01765057,147.08,147.06,45.35307584]
[1741376180482,3.32242894,147.16,147.08,6.799]
[1741376180483,45.35307584,147.16,147.08,6.799]
[1741376180686,1.01765057,147.18,147.13,45.35307584]
[1741376180887,1.01765057,147.22,147.08,14.679]
[1741376181088,1.01765057,147.21,147.08,23.7965]
[1741376181290,45.35307584,147.18,147.11,45.35307584]
[1741376181479,46.37072641,147.17,147.1,45.35307584]
[1741376181787,18.64964886,147.16,147.0,6.8027]
[1741376182002,45.35307584,147.15,147.08,45.35307584]
[1741376182161,18.64964886,147.13,147.0,52.15577584]
[1741376182362,45.35307584,147.09,147.02,45.35307584]
[1741376182591,1.01765057,147.08,147.0,6.8027]
[1741376182784,147.08,147.17,147.01,1.02018539]
[1741376183086,18.64964886,147.15,147.02,312.0]
[1741376183273,1.01765057,147.14,147.02,312.0]
[1741376183472,147.08,147.17,147.0,57.8231]
[1741376183473,147.08,147.17,147.03,8.89985351]
[1741376183677,7.88,147.19,147.03,8.89985351]
[1741376183874,45.35307584,147.23,147.1,7.48]
[1741376184087,147.08,147.25,147.2,45.35307584]
[1741376184387,45.35307584,147.27,147.21,6.793]
[1741376184592,45.35307584,147.29,147.23,45.35307584]
[1741376184783,45.35307584,147.31,147.24,45.35307584]
[1741376185371,1.01765057,147.3,147.21,6.793]
[1741376185595,1.01765057,147.3,147.22,45.35307584]
[1741376185795,1.01765057,147.32,147.25,45.35307584]
[1741376186092,192.43307584,147.33,147.22,7.4203]
[1741376186298,45.35307584,147.31,147.25,45.35307584]
[1741376186791,45.35307584,147.34,147.28,45.35307584]
[1741376186991,45.35307584,147.33,147.27,45.35307584]
[1741376187170,45.35307584,147.32,147.26,45.35307584]
[1741376187527,45.35307584,147.29,147.23,6.792]
[1741376187682,45.35307584,147.29,147.2,16.9833]
[1741376187683,45.35307584,147.26,147.2,62.33637584]
[1741376187997,1.01765057,147.3,147.21,45.35307584]
[1741376188167,45.35307584,147.26,147.19,45.35307584]
[1741376188362,45.35307584,147.24,147.17,45.35307584]
[1741376188569,45.35307584,147.23,147.18,6.7944]
[1741376189199,45.35307584,147.21,147.15,52.14877584]
[1741376189403,18.64964886,147.23,147.11,16.9936]
[1741376189574,45.35307584,147.18,147.11,52.15067584]
[1741376189771,45.35307584,147.17,147.11,52.15067584]
[1741376190098,45.35307584,147.16,147.1,45.35307584]
[1741376190298,1.01765057,147.15,147.06,6.7999]
[1741376190504,45.35307584,147.15,147.08,45.35307584]
[1741376190794,45.35307584,147.14,147.05,23.801]
[1741376190986,45.35307584,147.13,147.06,45.35307584]
[1741376191185,18.64964886,147.17,147.05,45.35307584]
[1741376191186,1.01765057,147.12,147.05,45.35307584]
[1741376191409,45.35307584,147.11,147.05,45.35307584]
[1741376191604,45.35307584,147.12,147.06,45.35307584]
[1741376191989,1.01765057,147.13,147.06,45.35307584]
[1741376192317,7.88,147.15,147.04,6.8007]
[1741376192318,53.23307584,147.15,147.04,6.8007]
[1741376192490,7.88,147.15,147.09,45.35307584]
[1741376192686,7.88,147.22,147.13,45.35307584]
[1741376192988,7.88,147.22,147.15,45.35307584]
[1741376193186,147.08,147.27,147.18,45.35307584]
[1741376193400,192.43307584,147.27,147.21,45.35307584]
[1741376193619,45.35307584,147.28,147.21,45.35307584]
[1741376193790,45.35307584,147.28,147.14,7.5894]
[1741376193791,45.35307584,147.27,147.2,45.35307584]
[1741376193992,7.88,147.29,147.22,45.35307584]
[1741376194300,7.88,147.29,147.15,1.01887958]
[1741376194301,45.35307584,147.28,147.15,1.01887958]
[1741376194502,53.23307584,147.29,147.23,52.14507584]
[1741376194701,7.88,147.29,147.23,52.14507584]
[1741376194919,45.35307584,147.3,147.23,52.14507584]
[1741376195509,45.35307584,147.29,147.19,16.9839]
[1741376195685,45.35307584,147.29,147.22,45.35307584]
[1741376196314,45.35307584,147.28,147.21,45.35307584]
[1741376196520,18.64964886,147.31,147.21,45.35307584]
[1741376196824,45.35307584,147.29,147.2,6.7934]
[1741376197022,45.35307584,147.29,147.22,45.35307584]
[1741376197199,45.35307584,147.27,147.21,45.35307584]
[1741376197711,45.35307584,147.27,147.2,45.35307584]
[1741376197899,45.35307584,147.26,147.2,45.35307584]
[1741376198097,1.01765057,147.31,147.21,45.35307584]
[1741376198328,45.35307584,147.28,147.22,45.35307584]
[1741376198609,45.35307584,147.29,147.22,45.35307584]
[1741376198817,45.35307584,147.28,147.21,45.35307584]
[1741376198996,45.35307584,147.27,147.2,45.35307584]
[1741376199621,18.64964886,147.31,147.24,45.35307584]
[1741376199622,45.35307584,147.31,147.24,45.35307584]
[1741376199919,45.35307584,147.34,147.27,45.35307584]
[1741376200108,147.08,147.35,147.29,45.35307584]
[1741376200490,192.43307584,147.35,147.23,23.7722]
[1741376200709,192.43307584,147.35,147.28,45.35307584]
[1741376200915,0.03,147.36,147.3,45.35307584]
[1741376201303,45.38307584,147.36,147.3,45.35307584]
[1741376201620,45.35307584,147.35,147.29,45.35307584]
[1741376201808,0.03,147.36,147.31,45.35307584]
[1741376202008,0.03,147.36,147.34,45.35307584]
[1741376202206,0.03,147.36,147.35,45.35307584]
[1741376202631,0.03,147.36,147.34,45.35307584]
[1741376203119,0.03,147.36,147.35,45.35307584]
[1741376203995,0.03,147.36,147.35,357.35307584]
[1741376204325,0.03,147.36,147.35,402.70615168]
[1741376204819,0.03,147.36,147.35,409.49265168]
[1741376205026,0.03,147.36,147.35,312.0]
[1741376205202,0.03,147.36,147.29,23.7621]
[1741376205405,0.03,147.36,147.35,45.35307584]
[1741376206220,0.03,147.36,147.28,88.7897]
[1741376206423,45.38307584,147.36,147.29,45.35307584]
[1741376206726,45.35307584,147.35,147.28,45.35307584]
[1741376207104,45.38307584,147.36,147.29,45.35307584]
[1741376207429,46.37072641,147.35,147.28,45.35307584]
[1741376207627,45.35307584,147.35,147.28,45.35307584]
[1741376208122,45.38307584,147.36,147.29,45.35307584]
[1741376208326,45.38307584,147.36,147.26,14.6506]
[1741376208327,0.03,147.36,147.3,45.35307584]
[1741376209225,0.03,147.36,147.31,45.35307584]
[1741376209636,0.03,147.36,147.33,45.35307584]
[1741376209806,0.03,147.36,147.35,45.35307584]
[1741376210401,0.03,147.36,147.34,45.35307584]
[1741376210599,0.03,147.36,147.35,45.35307584]
[1741376210823,0.03,147.36,147.35,52.13957584]
[1741376211013,0.03,147.36,147.35,45.35307584]
[1741376211214,0.03,147.36,147.34,45.35307584]
[1741376211422,0.03,147.36,147.35,45.35307584]
[1741376212025,0.03,147.36,147.31,6.7884]
[1741376212217,0.03,147.36,147.33,45.35307584]
[1741376212529,0.03,147.36,147.34,45.35307584]
[1741376212827,0.03,147.36,147.33,45.35307584]
[1741376213327,0.03,147.36,147.32,45.35307584]
[1741376213527,0.03,147.36,147.33,45.35307584]
[1741376214241,0.03,147.36,147.35,45.35307584]
[1741376214527,0.03,147.36,147.35,90.70615168]
[1741376215011,0.03,147.36,147.35,97.49265168]
[1741376215518,64.07210109,147.39,147.35,114.45905168]
[1741376215709,64.07210109,147.39,147.36,1.01736083]
[1741376216102,0.03,147.51,147.37,18.64964886]
[1741376216413,0.03,147.51,147.46,45.35307584]
[1741376216616,0.03,147.51,147.47,45.35307584]
[1741376216814,0.03,147.51,147.46,45.35307584]
[1741376217019,0.03,147.51,147.36,1.24088723]
[1741376217020,45.35307584,147.48,147.36,1.24088723]
[1741376217408,0.03,147.51,147.45,45.35307584]
[1741376217609,0.03,147.51,147.46,45.35307584]
[1741376217823,0.03,147.51,147.47,45.35307584]
[1741376218130,0.03,147.51,147.46,45.35307584]
[1741376218339,0.03,147.51,147.45,45.35307584]
[1741376218629,45.35307584,147.5,147.37,23.7497]
[1741376218799,0.03,147.51,147.45,45.35307584]
[1741376218998,50.09877584,147.5,147.44,45.35307584]
[1741376219223,45.35307584,147.48,147.42,45.35307584]
[1741376219613,5.76335057,147.5,147.44,45.35307584]
[1741376219614,50.09877584,147.5,147.44,45.35307584]
[1741376219814,4.7754,147.51,147.45,45.35307584]
[1741376220017,0.03,147.51,147.48,45.35307584]
[1741376220208,0.03,147.51,147.49,45.35307584]
[1741376220408,0.03,147.51,147.5,45.35307584]
[1741376220730,4.7755,147.51,147.42,45.35307584]
[1741376220933,0.03,147.51,147.49,45.35307584]
[1741376221103,0.03,147.51,147.48,45.35307584]
[1741376221302,0.03,147.51,147.44,6.7824]
[1741376221726,1.04765057,147.51,147.39,23.7454]
[1741376221931,45.38307584,147.51,147.44,45.35307584]
[1741376222104,45.38307584,147.51,147.45,45.35307584]
[1741376222307,45.35307584,147.48,147.42,45.35307584]
[1741376222513,1.01765057,147.5,147.37,6.7856]
[1741376222733,18.64964886,147.49,147.37,6.7856]
[1741376222942,1.01765057,147.48,147.37,6.7856]
[1741376223309,4.7467,147.47,147.36,6.7861]
[1741376223639,45.35307584,147.46,147.4,45.35307584]
[1741376224016,4.7467,147.47,147.42,45.35307584]
[1741376224325,4.7461,147.49,147.44,45.35307584]
[1741376224516,4.7461,147.49,147.45,45.35307584]
[1741376224729,4.7461,147.49,147.44,45.35307584]
[1741376224927,50.09917584,147.49,147.43,45.35307584]
[1741376225131,45.35307584,147.45,147.39,45.35307584]
[1741376225317,46.37072641,147.48,147.41,45.35307584]
[1741376225527,4.7464,147.48,147.36,6.7861]
[1741376225733,1.01765057,147.47,147.36,6.7861]
[1741376226120,45.35307584,147.44,147.38,45.35307584]
[1741376226435,45.35307584,147.4,147.34,45.35307584]
[1741376226639,45.35307584,147.41,147.35,45.35307584]
[1741376226934,7.86,147.44,147.39,45.35307584]
[1741376227134,8.5261,147.48,147.35,46.37067236]
[1741376227324,45.35307584,147.47,147.41,45.35307584]
[1741376227511,46.37072641,147.47,147.41,45.35307584]
[1741376227911,46.37072641,147.47,147.36,6.7861]
[1741376227912,1.01765057,147.47,147.36,6.7861]
[1741376228132,45.35307584,147.41,147.35,45.35307584]
[1741376228442,7.2884,147.43,147.34,45.35307584]
[1741376228620,45.35307584,147.4,147.34,45.35307584]
[1741376228937,45.35307584,147.42,147.36,45.35307584]
[1741376229311,53.65912641,147.43,147.37,45.35307584]
[1741376229636,45.35307584,147.41,147.35,45.35307584]
[1741376230438,45.35307584,147.42,147.35,45.35307584]
[1741376230647,45.35307584,147.42,147.36,45.35307584]
[1741376230941,45.35307584,147.42,147.35,45.35307584]
[1741376231113,45.35307584,147.41,147.35,45.35307584]
[1741376231314,45.35307584,147.41,147.31,335.7594]
[1741376231315,45.35307584,147.42,147.36,45.35307584]
[1741376231548,45.35307584,147.41,147.35,45.35307584]
[1741376231836,16.6192,147.42,147.31,318.7884]
[1741376232038,16.6192,147.42,147.29,82.0]
[1741376232039,45.35307584,147.35,147.3,6.7886]
[1741376232332,45.35307584,147.34,147.28,45.35307584]
[1741376232637,45.35307584,147.33,147.27,45.35307584]
[1741376232838,45.35307584,147.34,147.28,45.35307584]
[1741376233434,45.35307584,147.35,147.29,45.35307584]
[1741376233616,1.01765057,147.41,147.34,45.35307584]
[1741376233617,45.35307584,147.4,147.34,45.35307584]
[1741376233823,45.35307584,147.38,147.32,45.35307584]
[1741376234024,45.35307584,147.38,147.33,45.35307584]
[1741376234238,1.01765057,147.41,147.34,45.35307584]
[1741376234412,7.86,147.42,147.29,1.01801015]
[1741376234831,12.6084,147.42,147.29,1.01801015]
[1741376235049,12.6084,147.42,147.31,312.0]
[1741376235232,7.86,147.42,147.31,312.0]
[1741376235515,53.21307584,147.42,147.36,45.35307584]
[1741376235714,45.35307584,147.42,147.36,45.35307584]
[1741376236122,50.10137584,147.42,147.36,45.35307584]
[1741376236317,45.35307584,147.41,147.32,23.7577]
[1741376236519,4.7483,147.42,147.32,23.7577]
[1741376236520,31.25724886,147.45,147.38,45.35307584]
[1741376236828,45.35307584,147.43,147.37,45.35307584]
[1741376237029,45.35307584,147.45,147.39,45.35307584]
[1741376237228,45.35307584,147.43,147.37,45.35307584]
[1741376237429,45.35307584,147.42,147.36,45.35307584]
[1741376237620,45.35307584,147.42,147.37,6.7856]
[1741376237820,50.10137584,147.42,147.36,52.13907584]
[1741376238329,45.35307584,147.43,147.37,45.35307584]
[1741376238639,45.35307584,147.46,147.39,45.35307584]
[1741376238937,45.35307584,147.46,147.4,45.35307584]
[1741376239421,45.35307584,147.45,147.39,45.35307584]
[1741376240125,45.35307584,147.45,147.39,52.13747584]
[1741376240436,1.01765057,147.47,147.41,45.35307584]
[1741376240636,45.35307584,147.49,147.43,45.35307584]
[1741376240842,45.35307584,147.47,147.41,45.35307584]
[1741376241212,45.35307584,147.47,147.36,23.7513]
[1741376241213,45.35307584,147.45,147.39,45.35307584]
[1741376241412,45.35307584,147.44,147.38,45.35307584]
[1741376241843,45.35307584,147.42,147.36,45.35307584]
[1741376242344,50.10147584,147.42,147.36,45.35307584]
[1741376242639,50.10117584,147.43,147.37,45.35307584]
[1741376242940,18.64964886,147.45,147.35,45.35307584]
[1741376242941,50.10037584,147.45,147.35,45.35307584]
[1741376243133,50.10037584,147.45,147.37,45.35307584]
[1741376243134,45.35307584,147.43,147.37,45.35307584]
[1741376243333,45.35307584,147.41,147.34,6.787]
[1741376243518,1.01765057,147.44,147.34,6.787]
[1741376243519,45.35307584,147.42,147.36,45.35307584]
[1741376244148,1.01765057,147.44,147.37,45.35307584]
[1741376244149,45.35307584,147.43,147.37,45.35307584]
[1741376244442,45.35307584,147.43,147.33,15.0829]
[1741376244443,53.21307584,147.46,147.4,45.35307584]
[1741376244742,7.86,147.46,147.41,45.35307584]
[1741376244939,46.37072641,147.49,147.42,45.35307584]
[1741376245141,51.11672641,147.49,147.42,45.35307584]
[1741376245332,19.7543,147.51,147.43,45.35307584]
[1741376245333,45.35307584,147.5,147.43,45.35307584]
[1741376245527,0.03,147.51,147.45,45.35307584]
[1741376245740,0.03,147.51,147.47,45.35307584]
[1741376245941,0.03,147.51,147.48,45.35307584]
[1741376246127,0.03,147.51,147.42,45.35307584]
[1741376246128,0.03,147.51,147.49,45.35307584]
[1741376246438,0.03,147.51,147.44,7.3175]
[1741376246439,0.03,147.51,147.46,45.35307584]
[1741376246741,0.03,147.51,147.47,45.35307584]
[1741376247244,0.03,147.51,147.46,45.35307584]
[1741376247426,45.38307584,147.51,147.44,14.0998]
[1741376247741,45.35307584,147.5,147.45,45.35307584]
[1741376247944,45.38307584,147.51,147.45,45.35307584]
[1741376248146,0.03,147.51,147.47,45.35307584]
[1741376248527,0.03,147.51,147.45,45.35307584]
[1741376248929,45.38307584,147.51,147.45,45.35307584]
[1741376249522,45.35307584,147.49,147.43,6.7828]
[1741376249725,45.35307584,147.48,147.42,45.35307584]
[1741376249923,45.35307584,147.47,147.42,45.35307584]
[1741376250144,45.35307584,147.48,147.42,45.35307584]
[1741376250340,50.09967584,147.48,147.42,52.13627584]
[1741376250534,45.35307584,147.49,147.42,6.7832]
[1741376250744,45.35307584,147.48,147.42,52.13627584]
[1741376250928,45.35307584,147.49,147.43,45.35307584]
[1741376251440,4.7457,147.5,147.44,45.35307584]
[1741376251644,50.09877584,147.5,147.44,45.35307584]
[1741376252045,45.35307584,147.49,147.42,6.7832]
[1741376252230,45.35307584,147.49,147.43,45.35307584]
[1741376252231,4.7464,147.48,147.43,45.35307584]
[1741376252434,50.09917584,147.49,147.43,52.13587584]
[1741376253153,50.09917584,147.49,147.43,45.35307584]
[1741376253451,45.35307584,147.48,147.43,45.35307584]
[1741376253651,45.35307584,147.48,147.42,52.13607584]
[1741376254257,45.35307584,147.49,147.43,45.35307584]
[1741376254435,45.35307584,147.5,147.44,45.35307584]
[1741376254641,0.03,147.51,147.45,45.35307584]
[1741376254848,50.12857584,147.51,147.45,45.35307584]
[1741376255151,45.35307584,147.48,147.42,45.35307584]
[1741376255651,45.38307584,147.51,147.45,45.35307584]
[1741376256424,0.03,147.51,147.48,45.35307584]
[1741376256624,0.03,147.51,147.49,45.35307584]
[1741376256857,0.03,147.51,147.5,45.35307584]
[1741376257239,0.03,147.51,147.49,45.35307584]
[1741376257742,0.03,147.51,147.5,45.35307584]
[1741376257942,0.0001,147.51,147.5,45.35307584]
[1741376258255,0.03,147.55,147.5,45.35307584]
[1741376258554,0.03,147.55,147.54,45.35307584]
[1741376258925,0.03,147.55,147.53,45.35307584]
[1741376259353,0.03,147.55,147.54,45.35307584]
[1741376260439,0.03,147.55,147.54,52.13087584]
[1741376261757,0.03,147.63,147.54,52.13087584]
[1741376261758,4.7412,147.65,147.54,114.42845168]
[1741376261962,45.35307584,147.63,147.57,45.35307584]
[1741376262255,45.35307584,147.62,147.56,45.35307584]
[1741376262853,45.35307584,147.62,147.5,6.7796]
[1741376262854,4.7421,147.62,147.5,6.7796]
[1741376263036,4.7416,147.63,147.5,24.74482247]
[1741376263355,50.09437584,147.64,147.58,45.35307584]
[1741376263748,4.7409,147.66,147.6,45.35307584]
[1741376263923,50.09397584,147.66,147.6,45.35307584]
[1741376264126,50.09397584,147.66,147.56,45.35307584]
[1741376264127,45.35307584,147.65,147.59,45.35307584]
[1741376264432,45.35307584,147.64,147.58,45.35307584]
[1741376264628,4.7409,147.66,147.51,19.66578298]
[1741376264629,45.35307584,147.62,147.51,1.01613412]
[1741376264837,45.35307584,147.62,147.5,24.7446824]
[1741376264838,4.7422,147.61,147.5,24.7446824]
[1741376265156,50.09527584,147.61,147.55,45.35307584]
[1741376265732,1.01765057,147.65,147.58,45.35307584]
[1741376266052,1.01765057,147.65,147.51,1.01639266]
[1741376266053,45.35307584,147.64,147.59,45.35307584]
[1741376266241,45.35307584,147.63,147.57,45.35307584]
[1741376266865,4.7419,147.62,147.57,45.35307584]
[1741376267073,4.7419,147.62,147.58,45.35307584]
[1741376267360,4.7416,147.63,147.58,45.35307584]
[1741376268433,45.35307584,147.64,147.58,45.35307584]
[1741376268643,45.35307584,147.64,147.56,6.7767]
[1741376268644,50.09397584,147.65,147.59,45.35307584]
[1741376269061,45.35307584,147.64,147.58,45.35307584]
[1741376269565,45.35307584,147.63,147.54,16.9444]
[1741376269753,45.35307584,147.63,147.57,45.35307584]
[1741376270748,45.35307584,147.63,147.54,16.9444]
[1741376270749,50.09427584,147.64,147.58,45.35307584]
[1741376271267,4.7412,147.64,147.58,45.35307584]
[1741376271467,50.09427584,147.64,147.58,45.35307584]
[1741376271836,0.03,147.63,147.62,45.35307584]
[1741376272038,0.03,147.63,147.61,45.35307584]
[1741376272237,0.03,147.63,147.58,45.35307584]
[1741376272577,0.03,147.63,147.59,45.35307584]
[1741376272752,0.03,147.63,147.58,45.35307584]
[1741376273144,0.03,147.63,147.59,45.35307584]
[1741376273355,0.03,147.63,147.61,45.35307584]
[1741376273537,0.03,147.63,147.6,45.35307584]
[1741376273949,0.03,147.63,147.59,52.12827584]
[1741376274242,0.03,147.63,147.59,45.35307584]
[1741376274541,0.03,147.63,147.59,52.12847584]
[1741376275171,0.03,147.63,147.61,45.35307584]
[1741376275374,0.03,147.63,147.6,45.35307584]
[1741376276239,0.03,147.63,147.59,45.35307584]
[1741376276740,0.03,147.63,147.6,45.35307584]
[1741376277340,0.03,147.63,147.6,52.12767584]
[1741376278950,0.03,147.63,147.6,6.7746]
[1741376279147,0.03,147.63,147.58,45.35307584]
[1741376279356,0.03,147.63,147.56,6.8097]
[1741376279357,30.15349806,147.61,147.56,6.8097]
[1741376279866,30.15349806,147.62,147.56,6.8097]
[1741376280239,30.18349806,147.63,147.57,30.15349806]
[1741376280641,4.7419,147.62,147.57,6.7762]
[1741376280851,34.89539806,147.62,147.57,6.7762]
[1741376281168,34.92509806,147.63,147.57,36.92969806]
[1741376281577,0.03,147.63,147.58,30.15349806]
[1741376281779,0.03,147.63,147.59,30.15349806]
[1741376282078,0.03,147.63,147.57,23.7173]
[1741376282079,4.7715,147.63,147.57,6.7762]
[1741376282251,4.7715,147.63,147.58,30.15349806]
[1741376282452,0.03,147.63,147.59,30.15349806]
[1741376282647,0.03,147.63,147.61,30.15349806]
[1741376282851,0.03,147.63,147.62,30.15349806]
[1741376283056,0.03,147.68,147.62,60.30699612]
[1741376283261,0.03,147.68,147.66,30.15349806]
[1741376283461,0.03,147.68,147.6,27.4879]
[1741376283683,0.03,147.68,147.64,30.15349806]
[1741376283980,0.03,147.68,147.63,30.15349806]
[1741376284290,0.03,147.68,147.65,30.15349806]
[1741376284452,0.03,147.68,147.66,30.15349806]
[1741376284657,0.03,147.68,147.65,30.15349806]
[1741376285179,0.03,147.68,147.62,16.9349]
[1741376285180,0.03,147.68,147.67,30.15349806]
[1741376287158,0.03,147.68,147.65,30.15349806]
[1741376287358,0.03,147.68,147.62,7.2078]
[1741376287359,0.03,147.68,147.64,30.15349806]
[1741376287578,0.03,147.68,147.63,30.15349806]
[1741376287966,0.03,147.68,147.65,30.15349806]